bitfinex/quotes_BTCUSD_20250908
["timestamp","ask_amount","ask_price","bid_price","bid_amount"]
[1757294277687,0.01,110930.0,110920.0,0.77106612]
[1757294277923,0.01,110930.0,110920.0,1.17783457]
[1757294278121,0.01,110930.0,110920.0,1.02446251]
[1757294278327,0.01,110930.0,110920.0,1.17830251]
[1757294278526,0.011,110930.0,110920.0,1.17930251]
[1757294282404,0.011,110930.0,110920.0,1.17922251]
[1757294291260,0.011,110930.0,110920.0,1.36901372]
[1757294291486,0.011,110930.0,110920.0,1.17922251]
[1757294291696,0.011,110930.0,110920.0,1.20016133]
[1757294292533,0.01,110930.0,110920.0,1.21721133]
[1757294294951,0.011,110930.0,110920.0,1.22021133]
[1757294295614,0.01,110930.0,110920.0,1.21821133]
[1757294295814,0.01,110930.0,110920.0,1.21781133]
[1757294296250,0.011,110930.0,110920.0,1.22181133]
[1757294296954,0.011,110930.0,110920.0,1.20376133]
[1757294297395,0.011,110930.0,110920.0,1.20276133]
[1757294298036,0.011,110930.0,110920.0,1.20676133]
[1757294302268,0.011,110930.0,110920.0,1.28017012]
[1757294302532,0.011,110930.0,110920.0,1.09037891]
[1757294302743,0.011,110930.0,110920.0,1.46996133]
[1757294304630,0.011,110930.0,110920.0,1.46992133]
[1757294306982,0.011,110930.0,110920.0,1.69921254]
[1757294307205,0.011,110930.0,110920.0,1.59045593]
[1757294307905,0.011,110930.0,110920.0,1.99045593]
[1757294308973,0.011,110930.0,110920.0,2.18024714]
[1757294309181,0.011,110930.0,110920.0,1.99045593]
[1757294309742,0.011,110930.0,110920.0,2.18024714]
[1757294309955,0.011,110930.0,110920.0,1.99045593]
[1757294310421,0.011,110930.0,110920.0,2.38024714]
[1757294310623,0.011,110930.0,110920.0,2.16704714]
[1757294311426,0.011,110930.0,110920.0,2.08601254]
[1757294311638,0.011,110930.0,110920.0,2.13601254]
[1757294312466,0.011,110930.0,110920.0,1.75621347]
[1757294313085,0.07061212,110970.0,110960.0,0.18024513]
[1757294313279,0.07061212,110970.0,110960.0,0.68409568]
[1757294313487,0.07061212,110970.0,110960.0,0.68943568]
[1757294313688,0.01,110980.0,110970.0,0.18022889]
[1757294313894,0.01,110980.0,110970.0,0.33330889]
[1757294314092,0.01,110980.0,110970.0,0.33864889]
[1757294314316,0.01,110980.0,110970.0,0.43056488]
[1757294315438,0.01,110980.0,110970.0,0.4403881]
[1757294315638,0.01704673,110980.0,110970.0,0.4403881]
[1757294315846,0.01004673,110980.0,110970.0,0.4403881]
[1757294317072,0.01004673,110980.0,110970.0,0.27748488]
[1757294317073,0.19025938,110980.0,110970.0,0.27748488]
[1757294317457,0.19025938,110980.0,110970.0,0.43052488]
[1757294317662,0.01604673,110980.0,110970.0,0.43152488]
[1757294317800,0.01804673,110980.0,110970.0,0.43152488]
[1757294317997,0.19825938,110980.0,110970.0,0.43152488]
[1757294318347,0.19225938,110980.0,110970.0,0.27748488]
[1757294318560,0.19423938,110980.0,110970.0,0.43048488]
[1757294318762,0.19225938,110980.0,110970.0,0.43048488]
[1757294319154,0.01204673,110980.0,110970.0,0.43048488]
[1757294320093,0.19225938,110980.0,110970.0,0.43048488]
[1757294320509,0.19225938,110980.0,110970.0,0.43984708]
[1757294320725,0.19225938,110980.0,110970.0,0.43048488]
[1757294320930,0.01204673,110980.0,110970.0,0.43048488]
[1757294321343,0.19225938,110980.0,110970.0,0.43048488]
[1757294321569,0.19225938,110980.0,110970.0,0.43148488]
[1757294322975,0.01204673,110980.0,110970.0,0.43148488]
[1757294323711,0.19225938,110980.0,110970.0,0.43148488]
[1757294324642,0.01204673,110980.0,110970.0,0.43148488]
[1757294325601,0.19225938,110980.0,110970.0,0.43148488]
[1757294326323,0.01204673,110980.0,110970.0,0.43148488]
[1757294326524,0.19225938,110980.0,110970.0,0.43148488]
[1757294327623,0.38183394,110980.0,110970.0,0.09825599]
[1757294327836,0.38670394,110980.0,110970.0,0.001]
[1757294328254,0.42384912,110980.0,110970.0,0.001]
[1757294328458,0.22491265,110980.0,110970.0,0.001]
[1757294328667,0.75678177,110980.0,110970.0,0.001]
[1757294328878,0.56720721,110980.0,110970.0,0.001]
[1757294329302,0.18024513,110960.0,110950.0,0.2632]
[1757294329492,0.37180969,110960.0,110950.0,0.50783599]
[1757294329729,0.37180969,110960.0,110950.0,0.68809736]
[1757294330540,0.37180969,110960.0,110950.0,0.69116736]
[1757294330896,0.18223513,110960.0,110950.0,0.69321736]
[1757294331282,0.37180969,110960.0,110950.0,0.51295599]
[1757294331496,0.37180969,110960.0,110950.0,0.68809736]
[1757294331915,0.37180969,110960.0,110950.0,0.42489736]
[1757294333924,0.37180969,110960.0,110950.0,0.24459599]
[1757294334545,0.37180969,110960.0,110950.0,0.42485736]
[1757294336266,0.37180969,110960.0,110950.0,0.24459599]
[1757294336475,0.37180969,110960.0,110950.0,0.42485736]
[1757294336682,0.37180969,110960.0,110950.0,0.24459599]
[1757294336888,0.37180969,110960.0,110950.0,0.42485736]
[1757294340375,0.18026137,110950.0,110940.0,0.07825388]
[1757294340623,0.18027762,110940.0,110930.0,0.2765569]
[1757294340825,0.37185218,110940.0,110930.0,0.49388976]
[1757294341035,0.37185218,110940.0,110930.0,0.49593976]
[1757294341237,0.37185218,110940.0,110930.0,0.83900976]
[1757294341637,0.18925738,110960.0,110940.0,0.18027762]
[1757294341846,0.36983593,110950.0,110940.0,0.18032435]
[1757294342048,0.36983593,110950.0,110940.0,0.18544435]
[1757294342255,0.36983593,110950.0,110940.0,0.18644435]
[1757294342667,0.36983593,110950.0,110940.0,0.18544435]
[1757294343834,0.36983593,110950.0,110940.0,0.18644435]
[1757294344250,0.37181593,110950.0,110940.0,0.00104673]
[1757294344654,0.37470593,110950.0,110940.0,4.673e-05]
[1757294344882,0.37181593,110950.0,110940.0,0.18032435]
[1757294345085,0.37181593,110950.0,110940.0,0.18544435]
[1757294345293,0.34173738,110960.0,110940.0,0.18544435]
[1757294345547,0.36983593,110950.0,110940.0,0.33784435]
[1757294345740,0.37181593,110950.0,110940.0,0.33784435]
[1757294346297,0.18224137,110950.0,110940.0,0.33784435]
[1757294346504,0.37281593,110950.0,110940.0,0.33784435]
[1757294346715,0.001,110950.0,110940.0,0.42976034]
[1757294346928,0.001,110950.0,110940.0,0.6193349]
[1757294347347,0.002,110950.0,110940.0,0.42976034]
[1757294348198,0.001,110950.0,110940.0,0.42976034]
[1757294348404,0.36981975,110960.0,110950.0,0.18026137]
[1757294348604,0.18024519,110960.0,110950.0,0.18538137]
[1757294348809,0.36981975,110960.0,110950.0,0.18538137]
[1757294349011,0.37179975,110960.0,110950.0,0.18538137]
[1757294349424,0.18222519,110960.0,110950.0,0.18538137]
[1757294349631,0.37179975,110960.0,110950.0,0.18538137]
[1757294350241,0.18222519,110960.0,110950.0,0.18538137]
[1757294350443,0.18957456,110960.0,110950.0,0.18538137]
[1757294351064,0.40630499,110970.0,110960.0,0.18024513]
[1757294351270,0.40828499,110970.0,110960.0,0.33260513]
[1757294351475,0.38121691,110970.0,110960.0,0.33260513]
[1757294352321,0.38121691,110970.0,110960.0,0.33772513]
[1757294352826,0.38221691,110970.0,110960.0,0.15748]
[1757294353450,0.38221691,110970.0,110960.0,0.15236]
[1757294354602,0.38321691,110970.0,110960.0,0.33260513]
[1757294354778,0.38321691,110970.0,110960.0,0.15236]
[1757294355352,0.38321691,110970.0,110960.0,0.33260513]
[1757294355563,0.38321691,110970.0,110960.0,0.15236]
[1757294355808,0.38321691,110970.0,110960.0,0.33772513]
[1757294356014,0.37419073,110970.0,110960.0,0.33772513]
[1757294356782,0.18461617,110970.0,110960.0,0.33772513]
[1757294358095,0.37419073,110970.0,110960.0,0.33772513]
[1757294358561,0.37221073,110970.0,110960.0,0.33772513]
[1757294359236,0.18263617,110970.0,110960.0,0.33772513]
[1757294359521,0.00240728,110970.0,110960.0,0.42964112]
[1757294359700,0.18263617,110970.0,110960.0,0.42964112]
[1757294360722,0.00240728,110970.0,110960.0,0.42964112]
[1757294361177,0.18263617,110970.0,110960.0,0.42964112]
[1757294361389,0.00240728,110970.0,110960.0,0.42964112]
[1757294361599,0.00140728,110970.0,110960.0,0.42964112]
[1757294362001,0.00040728,110970.0,110960.0,0.42964112]
[1757294362384,0.18063617,110970.0,110960.0,0.42964112]
[1757294362591,0.00040728,110970.0,110960.0,0.42964112]
[1757294363159,0.00040728,110970.0,110960.0,0.43064112]
[1757294363787,0.18063617,110970.0,110960.0,0.43064112]
[1757294364411,0.00040728,110970.0,110960.0,0.43064112]
[1757294365448,0.00040728,110970.0,110960.0,0.43164112]
[1757294366201,0.00040728,110970.0,110960.0,0.43064112]
[1757294367503,0.00040728,110970.0,110960.0,0.43164112]
[1757294369718,0.00040728,110970.0,110960.0,0.77164112]
[1757294373412,0.00040728,110970.0,110960.0,0.43128112]
[1757294373772,0.18997234,110970.0,110960.0,0.43128112]
[1757294375192,0.18997234,110970.0,110960.0,0.27928112]
[1757294375368,0.00040728,110970.0,110960.0,0.43128112]
[1757294375577,0.18997234,110970.0,110960.0,0.43128112]
[1757294376599,0.18956506,110970.0,110960.0,0.43128112]
[1757294380529,0.56133901,110970.0,110960.0,0.27416112]
[1757294380728,0.56422901,110970.0,110960.0,0.42604112]
[1757294380967,0.37177395,110970.0,110960.0,0.43115112]
[1757294381535,0.37177395,110970.0,110960.0,0.43015112]
[1757294381935,0.37177395,110970.0,110960.0,0.42915112]
[1757294382343,0.37177395,110970.0,110960.0,0.43015112]
[1757294382559,0.56133901,110970.0,110960.0,0.24479599]
[1757294382768,0.37177395,110970.0,110960.0,0.24479599]
[1757294382981,0.56133901,110970.0,110960.0,0.24479599]
[1757294383186,0.37177395,110970.0,110960.0,0.24479599]
[1757294384390,0.37177395,110970.0,110960.0,0.42504112]
[1757294384948,0.37177395,110970.0,110960.0,0.42404112]
[1757294385354,0.37177395,110970.0,110960.0,0.42504112]
[1757294385714,0.37177395,110970.0,110960.0,0.43015112]
[1757294385920,0.37177395,110970.0,110960.0,0.42915112]
[1757294387861,0.37177395,110970.0,110960.0,0.24379599]
[1757294388278,0.37177395,110970.0,110960.0,0.42404112]
[1757294389064,0.37177395,110970.0,110960.0,0.24379599]
[1757294389521,0.18024513,110960.0,110950.0,0.06924]
[1757294389732,0.18026137,110950.0,110940.0,0.63929123]
[1757294389943,0.37181643,110950.0,110940.0,0.42406969]
[1757294390361,0.37181643,110950.0,110940.0,0.42910969]
[1757294390567,0.37181643,110950.0,110940.0,0.76910969]
[1757294392142,0.37181643,110950.0,110940.0,0.58884272]
[1757294392354,0.37469643,110950.0,110940.0,0.15184673]
[1757294392567,0.56426149,110950.0,110940.0,4.673e-05]
[1757294392998,0.40176451,110950.0,110940.0,4.673e-05]
[1757294393884,0.59132957,110950.0,110940.0,4.673e-05]
[1757294394272,0.60096533,110950.0,110940.0,4.673e-05]
[1757294395714,0.60196533,110950.0,110940.0,4.673e-05]
[1757294397294,0.60296533,110950.0,110940.0,4.673e-05]
[1757294398151,0.64266533,110950.0,110940.0,4.673e-05]
[1757294400932,0.60296533,110950.0,110940.0,4.673e-05]
[1757294401338,0.41340027,110950.0,110940.0,4.673e-05]
[1757294401524,0.22383521,110950.0,110940.0,4.673e-05]
[1757294401699,0.41340027,110950.0,110940.0,4.673e-05]
[1757294402500,0.37555521,110950.0,110940.0,4.673e-05]
[1757294402730,0.34504468,110950.0,110940.0,4.673e-05]
[1757294402935,0.52530605,110950.0,110940.0,4.673e-05]
[1757294408017,0.50100502,110950.0,110940.0,4.673e-05]
[1757294409757,0.0270697,110960.0,110950.0,0.18026137]
[1757294409979,0.37880996,110990.0,110960.0,0.18023171]
[1757294410194,0.18021265,110980.0,110970.0,0.00296]
[1757294410408,0.33193265,110980.0,110970.0,0.00296]
[1757294410623,0.15172,110980.0,110970.0,0.18318889]
[1757294410826,0.40587128,110990.0,110980.0,0.18021265]
[1757294411044,0.55759128,110990.0,110980.0,0.18021265]
[1757294411461,0.53052996,110990.0,110980.0,0.18021265]
[1757294411888,0.53052996,110990.0,110970.0,0.37275395]
[1757294412098,0.18021265,110980.0,110970.0,0.37275395]
[1757294412358,0.53052996,110990.0,110970.0,0.37485395]
[1757294412566,0.3409649,110990.0,110970.0,0.37485395]
[1757294412771,0.53052996,110990.0,110980.0,0.18021265]
[1757294413126,0.15210838,110990.0,110980.0,0.37483771]
[1757294413328,0.15206838,110990.0,110980.0,0.37483771]
[1757294413555,0.33226479,110990.0,110980.0,0.37483771]
[1757294413772,0.00042838,110990.0,110980.0,0.37483771]
[1757294414018,0.33226479,110990.0,110980.0,0.37483771]
[1757294414364,0.34526479,110990.0,110980.0,0.37583771]
[1757294415330,0.33226479,110990.0,110980.0,0.37483771]
[1757294415735,0.33326479,110990.0,110980.0,0.37483771]
[1757294415972,0.33926479,110990.0,110980.0,0.37583771]
[1757294416902,0.15906838,110990.0,110980.0,0.37583771]
[1757294417106,0.00242838,110990.0,110980.0,0.71604277]
[1757294417317,0.00242838,110990.0,110980.0,0.80795876]
[1757294417764,0.00242838,110990.0,110980.0,1.20795876]
[1757294418995,0.00242838,110990.0,110980.0,1.05631876]
[1757294419198,0.00242838,110990.0,110980.0,1.20795876]
[1757294422201,0.00142838,110990.0,110980.0,1.20795876]
[1757294422835,0.18062479,110990.0,110980.0,0.67718864]
[1757294423033,0.18062479,110990.0,110980.0,0.49487599]
[1757294423243,0.18062479,110990.0,110980.0,0.401]
[1757294423443,0.71135491,110990.0,110980.0,0.001]
[1757294423621,0.37245479,110990.0,110980.0,0.001]
[1757294423833,1.2527409,110990.0,110980.0,0.001]
[1757294424054,0.00901063,110980.0,110950.0,0.60333903]
[1757294424243,0.00901063,110980.0,110950.0,0.69667387]
[1757294424244,0.33228376,110970.0,110950.0,0.69667387]
[1757294424443,0.33228376,110970.0,110960.0,0.18024513]
[1757294424786,0.33228376,110970.0,110960.0,0.19278506]
[1757294425349,0.18024376,110970.0,110960.0,0.19278506]
[1757294425696,0.18024376,110970.0,110960.0,0.00322]
[1757294426115,0.18024376,110970.0,110960.0,0.00522]
[1757294426671,0.18024376,110970.0,110960.0,0.00322]
[1757294427118,0.18024376,110970.0,110960.0,0.0052]
[1757294428761,0.18024376,110970.0,110960.0,0.0062]
[1757294429438,0.18024376,110970.0,110960.0,0.00422]
[1757294430541,0.36980882,110970.0,110960.0,0.001]
[1757294431586,0.36980882,110970.0,110960.0,0.002]
[1757294432032,0.18024376,110970.0,110960.0,0.00422]
[1757294432270,0.18024376,110970.0,110960.0,0.19576506]
[1757294432468,0.18124376,110970.0,110960.0,0.0062]
[1757294433151,0.18124376,110970.0,110960.0,0.0052]
[1757294434117,0.18224376,110970.0,110960.0,0.0052]
[1757294434846,0.18224376,110970.0,110960.0,0.00322]
[1757294437066,0.18024513,110960.0,110950.0,0.42748372]
[1757294437308,0.18024513,110960.0,110950.0,0.6190538]
[1757294438439,0.18024513,110960.0,110950.0,0.6200538]
[1757294438972,0.18024513,110960.0,110950.0,0.09816272]
[1757294439160,0.18024513,110960.0,110950.0,0.00426673]
[1757294439384,0.52179521,110960.0,110950.0,0.00104673]
[1757294440379,0.10405019,110960.0,110950.0,0.00104673]
[1757294440569,0.28429532,110960.0,110950.0,0.00104673]
[1757294440775,0.28429532,110960.0,110950.0,0.00204673]
[1757294441342,0.28429532,110960.0,110950.0,0.00526673]
[1757294442600,0.28429532,110960.0,110950.0,0.00204673]
[1757294444412,0.4738854,110960.0,110950.0,0.00204673]
[1757294445054,0.4738854,110960.0,110950.0,0.00526673]
[1757294445260,0.4738854,110960.0,110950.0,0.00204673]
[1757294446193,0.28429532,110960.0,110950.0,0.00204673]
[1757294448699,0.28429532,110960.0,110950.0,0.00104673]
[1757294448922,0.28429532,110960.0,110950.0,4.673e-05]
[1757294449366,0.28429532,110960.0,110950.0,0.00104673]
[1757294449588,0.28429532,110960.0,110950.0,0.1865081]
[1757294449589,0.18024513,110960.0,110950.0,0.1865081]
[1757294450154,0.18024513,110960.0,110950.0,0.1855081]
[1757294450583,0.18024376,110970.0,110950.0,0.52689818]
[1757294450712,0.18024376,110970.0,110960.0,0.003]
[1757294450713,0.33204376,110970.0,110960.0,0.003]
[1757294451155,0.33204376,110970.0,110960.0,0.18534513]
[1757294451364,0.33204376,110970.0,110960.0,0.0051]
[1757294451988,0.33204376,110970.0,110960.0,0.18534513]
[1757294452186,0.33204376,110970.0,110960.0,0.0051]
[1757294453649,0.33804376,110970.0,110960.0,0.0061]
[1757294454338,0.34504376,110970.0,110960.0,0.0061]
[1757294455582,0.34504376,110970.0,110960.0,0.004]
[1757294456131,0.34504376,110970.0,110960.0,0.001]
[1757294456338,0.53463384,110970.0,110960.0,0.001]
[1757294460480,0.34504376,110970.0,110960.0,0.001]
[1757294460683,0.53463384,110970.0,110960.0,0.001]
[1757294460905,0.53463384,110970.0,110960.0,0.004]
[1757294461265,0.53463384,110970.0,110960.0,0.001]
[1757294461691,0.34504376,110970.0,110960.0,0.001]
[1757294462184,0.34504376,110970.0,110960.0,0.004]
[1757294462935,0.19322889,110970.0,110960.0,0.37818827]
[1757294463197,0.19322889,110970.0,110960.0,0.37593521]
[1757294463742,0.19322889,110970.0,110960.0,0.18634513]
[1757294465798,0.013,110970.0,110960.0,0.18634513]
[1757294466735,0.013,110970.0,110960.0,0.37593521]
[1757294467932,0.19322889,110970.0,110960.0,0.37593521]
[1757294468299,0.013,110970.0,110960.0,0.37593521]
[1757294468507,0.19322889,110970.0,110960.0,0.15564]
[1757294468710,0.19322889,110970.0,110960.0,0.004]
[1757294468915,0.19322889,110970.0,110960.0,0.001]
[1757294469115,0.19322889,110970.0,110960.0,0.18124513]
[1757294469320,0.19322889,110970.0,110960.0,0.18634513]
[1757294469497,0.013,110970.0,110960.0,0.37593521]
[1757294470301,0.013,110970.0,110960.0,0.18634513]
[1757294471624,0.19322889,110970.0,110960.0,0.37593521]
[1757294471972,0.013,110970.0,110960.0,0.37593521]
[1757294475521,0.19322889,110970.0,110960.0,0.37593521]
[1757294476757,0.47925649,110990.0,110970.0,0.1802139]
[1757294476758,0.16064982,110990.0,110970.0,0.1802139]
[1757294476968,0.33183641,110990.0,110980.0,0.18531265]
[1757294477219,0.18019641,110990.0,110980.0,0.18531265]
[1757294477414,0.18019641,110990.0,110980.0,0.19459015]
[1757294477622,0.33222092,111000.0,110980.0,0.19459015]
[1757294477840,0.33222092,111000.0,110980.0,0.18231265]
[1757294478041,0.33222092,111000.0,110990.0,0.003]
[1757294479330,0.33226764,111000.0,110990.0,0.003]
[1757294481088,0.33226764,111000.0,110990.0,0.004]
[1757294483649,0.33226764,111000.0,110990.0,0.006]
[1757294484256,0.33226764,111000.0,110990.0,0.008]
[1757294484619,0.33226764,111000.0,110990.0,0.006]
[1757294488502,0.33226764,111000.0,110990.0,0.008]
[1757294488937,0.33226764,111000.0,110990.0,0.006]
[1757294490434,0.52185772,111000.0,110990.0,0.003]
[1757294492427,0.7114478,111000.0,110990.0,0.003]
[1757294492664,0.84337379,111000.0,110990.0,0.003]
[1757294493526,0.68084398,111000.0,110990.0,0.003]
[1757294494466,0.8703909,111000.0,110990.0,0.003]
[1757294497325,1.0599594,111000.0,110990.0,0.003]
[1757294500102,1.0599594,111000.0,110990.0,0.001]
[1757294500603,0.18022889,110970.0,110960.0,0.00301]
[1757294500808,0.52139739,110970.0,110960.0,0.00301]
[1757294501012,0.18024513,110960.0,110950.0,0.28995087]
[1757294501227,0.36981363,110960.0,110950.0,0.35480473]
[1757294501438,0.36981363,110960.0,110950.0,0.35680473]
[1757294501870,0.36981363,110960.0,110950.0,0.28619261]
[1757294502273,0.36981363,110960.0,110950.0,0.28623934]
[1757294503277,0.37924325,110960.0,110950.0,0.28623934]
[1757294504104,0.36981363,110960.0,110950.0,0.28623934]
[1757294504307,0.36981363,110960.0,110950.0,0.28823934]
[1757294504508,0.18024513,110960.0,110950.0,0.09897272]
[1757294504747,0.55938213,110960.0,110950.0,0.00605673]
[1757294504967,0.55938213,110960.0,110950.0,0.00304673]
[1757294505408,0.62646179,110960.0,110950.0,0.00304673]
[1757294505842,0.63583952,110960.0,110950.0,0.00304673]
[1757294506060,1.56824732,110960.0,110950.0,1e-08]
[1757294506269,0.52027762,110940.0,110930.0,0.01]
[1757294506482,1.40173911,110940.0,110930.0,0.01]
[1757294506690,1.44174911,110940.0,110930.0,0.01]
[1757294508231,1.46882491,110940.0,110930.0,0.01]
[1757294508654,1.46886491,110940.0,110930.0,0.01]
[1757294510644,1.47386491,110940.0,110930.0,0.01]
[1757294511318,1.46886491,110940.0,110930.0,0.01]
[1757294513371,1.47886491,110940.0,110930.0,0.01]
[1757294514209,1.47786491,110940.0,110930.0,0.011]
[1757294514386,1.49880373,110940.0,110930.0,0.011]
[1757294514589,1.51080373,110940.0,110930.0,0.011]
[1757294514802,1.50180373,110940.0,110930.0,0.01]
[1757294515009,1.48980373,110940.0,110930.0,0.01]
[1757294515240,1.48980373,110940.0,110930.0,0.011]
[1757294515718,1.49980373,110940.0,110930.0,0.011]
[1757294518177,1.51180373,110940.0,110930.0,0.011]
[1757294518724,1.51184373,110940.0,110930.0,0.011]
[1757294520593,0.18032639,110910.0,110900.0,0.00301]
[1757294520809,0.18032639,110910.0,110890.0,0.07378212]
[1757294520810,0.18034265,110900.0,110890.0,0.07378212]
[1757294521022,0.71115965,110900.0,110890.0,0.07378212]
[1757294521228,0.33202265,110900.0,110890.0,0.07378212]
[1757294521442,0.71115965,110900.0,110890.0,0.07378212]
[1757294521647,0.71115965,110900.0,110890.0,0.00317]
[1757294521858,0.71124375,110900.0,110890.0,0.00317]
[1757294522011,0.72047248,110900.0,110890.0,0.00317]
[1757294523044,0.53090398,110900.0,110890.0,0.00317]
[1757294523873,0.53090398,110900.0,110890.0,0.003]
[1757294524282,0.72047248,110900.0,110890.0,0.003]
[1757294524708,0.53090398,110900.0,110890.0,0.003]
[1757294524904,0.53090398,110900.0,110890.0,0.004]
[1757294525254,0.55798807,110900.0,110890.0,0.004]
[1757294525704,0.83947256,110900.0,110890.0,0.004]
[1757294525922,0.88159256,110900.0,110890.0,0.004]
[1757294526139,0.708731,110900.0,110890.0,0.004]
[1757294526813,0.708731,110900.0,110890.0,0.001]
[1757294527270,0.8982995,110900.0,110890.0,0.004]
[1757294527495,1.2382995,110900.0,110890.0,0.004]
[1757294527681,1.2382995,110900.0,110890.0,0.001]
[1757294528618,1.2482995,110900.0,110890.0,0.001]
[1757294529488,0.52035891,110890.0,110880.0,0.01]
[1757294529721,0.97023034,110890.0,110880.0,0.01]
[1757294529938,1.01235034,110890.0,110880.0,0.01]
[1757294530181,1.20191884,110890.0,110880.0,0.01]
[1757294530379,1.24283217,110890.0,110880.0,0.01]
[1757294530737,1.05326367,110890.0,110880.0,0.01]
[1757294531516,1.0803517,110890.0,110880.0,0.01]
[1757294531724,1.0803917,110890.0,110880.0,0.01]
[1757294532330,1.0843917,110890.0,110880.0,0.01]
[1757294532538,0.9326717,110890.0,110880.0,0.01]
[1757294532767,1.0843917,110890.0,110880.0,0.01]
[1757294533312,0.91411055,110890.0,110880.0,0.01]
[1757294533705,1.10367905,110890.0,110880.0,0.01]
[1757294534737,0.91911055,110890.0,110880.0,0.01]
[1757294534957,0.76739055,110890.0,110880.0,0.01]
[1757294535121,1.10867905,110890.0,110880.0,0.01]
[1757294536016,1.10873574,110890.0,110880.0,0.01]
[1757294539675,1.10873336,110890.0,110880.0,0.01]
[1757294542695,1.29830186,110890.0,110880.0,0.01]
[1757294543383,1.10873336,110890.0,110880.0,0.01]
[1757294546346,0.91916486,110890.0,110880.0,0.01]
[1757294546563,1.10873336,110890.0,110880.0,0.01]
[1757294547414,1.13279673,110890.0,110880.0,0.01]
[1757294548587,1.32236523,110890.0,110880.0,0.01]
[1757294550302,1.13279673,110890.0,110880.0,0.01]
[1757294552380,1.32236523,110890.0,110880.0,0.01]
[1757294552585,1.57357092,110890.0,110880.0,1e-08]
[1757294552792,1.62209912,110890.0,110880.0,1e-08]
[1757294553005,1.43253062,110890.0,110880.0,1e-08]
[1757294553307,1.40023104,110890.0,110880.0,1e-08]
[1757294553524,1.39523104,110890.0,110880.0,1e-08]
[1757294553947,1.37692039,110890.0,110880.0,0.00100001]
[1757294554355,1.3832238,110890.0,110880.0,0.00100001]
[1757294554780,1.5627923,110890.0,110880.0,1e-08]
[1757294555007,1.3732238,110890.0,110880.0,1e-08]
[1757294555212,1.3772238,110890.0,110880.0,1e-08]
[1757294555415,1.43722347,110890.0,110880.0,1e-08]
[1757294555623,1.05408647,110890.0,110880.0,1e-08]
[1757294556402,1.06208647,110890.0,110880.0,1e-08]
[1757294557253,1.09436344,110890.0,110880.0,1e-08]
[1757294557462,1.18928344,110890.0,110880.0,1e-08]
[1757294557670,1.06208647,110890.0,110880.0,1e-08]
[1757294558230,1.09435931,110890.0,110880.0,1e-08]
[1757294559249,1.08805623,110890.0,110880.0,1e-08]
[1757294559739,0.93633623,110890.0,110880.0,1e-08]
[1757294559916,1.08805623,110890.0,110880.0,1e-08]
[1757294560349,1.03137652,110890.0,110880.0,1e-08]
[1757294560765,1.03987652,110890.0,110880.0,1e-08]
[1757294561417,1.06407603,110890.0,110880.0,1e-08]
[1757294563288,1.50217603,110890.0,110880.0,1e-08]
[1757294564319,1.46990319,110890.0,110880.0,1e-08]
[1757294565924,1.26818319,110890.0,110880.0,1e-08]
[1757294566168,1.41990319,110890.0,110880.0,1e-08]
[1757294566378,1.39570368,110890.0,110880.0,1e-08]
[1757294567206,1.39574669,110890.0,110880.0,1e-08]
[1757294567992,1.35362669,110890.0,110880.0,1e-08]
[1757294568141,1.52269908,110890.0,110880.0,1e-08]
[1757294568345,1.52269908,110890.0,110880.0,0.00309001]
[1757294568606,1.52269908,110890.0,110880.0,1e-08]
[1757294569803,1.33268787,110890.0,110880.0,1e-08]
[1757294570007,1.52269908,110890.0,110880.0,1e-08]
[1757294572167,1.52269908,110890.0,110880.0,0.00534001]
[1757294572375,1.50589482,110890.0,110880.0,0.00534001]
[1757294572576,1.48660747,110890.0,110880.0,0.00321001]
[1757294573500,1.29659626,110890.0,110880.0,0.00321001]
[1757294573703,1.48660747,110890.0,110880.0,0.00321001]
[1757294573943,1.48660747,110890.0,110880.0,0.00534001]
[1757294574550,1.29659626,110890.0,110880.0,0.00534001]
[1757294574763,1.48660747,110890.0,110880.0,0.00534001]
[1757294575170,1.04850747,110890.0,110880.0,0.00534001]
[1757294575940,0.70850747,110890.0,110880.0,0.00534001]
[1757294577356,0.51849626,110890.0,110880.0,0.00534001]
[1757294577546,0.38566694,110890.0,110880.0,0.00534001]
[1757294578889,0.57567815,110890.0,110880.0,0.00534001]
[1757294579467,0.38566694,110890.0,110880.0,0.00534001]
[1757294579602,0.57567815,110890.0,110880.0,0.00534001]
[1757294580006,0.34956905,110890.0,110880.0,0.00534001]
[1757294580271,0.33991675,110890.0,110880.0,0.00534001]
[1757294580467,0.33207891,110890.0,110880.0,0.18571519]
[1757294580691,0.33207891,110890.0,110880.0,0.3757264]
[1757294580815,0.18035891,110890.0,110880.0,0.3757264]
[1757294581016,0.18035891,110890.0,110880.0,0.18571519]
[1757294581242,0.33214675,110900.0,110890.0,0.18035891]
[1757294581445,8.41e-05,110900.0,110890.0,0.37571012]
[1757294582263,8.41e-05,110900.0,110890.0,0.39375012]
[1757294582522,8.41e-05,110900.0,110890.0,0.37571012]
[1757294582722,0.18042675,110900.0,110890.0,0.37571012]
[1757294583282,8.41e-05,110900.0,110890.0,0.37571012]
[1757294583561,0.18042675,110900.0,110890.0,0.37571012]
[1757294584727,0.18042675,110900.0,110890.0,0.18569891]
[1757294585539,0.18042675,110900.0,110890.0,0.00321]
[1757294585540,0.37043796,110900.0,110890.0,0.00321]
[1757294585758,0.37043796,110900.0,110890.0,0.00534]
[1757294586105,0.18042675,110900.0,110890.0,0.00534]
[1757294586474,0.37043796,110900.0,110890.0,0.01334]
[1757294586635,0.18042675,110900.0,110890.0,0.01334]
[1757294587372,0.18042675,110900.0,110890.0,0.00534]
[1757294587753,0.18042675,110900.0,110890.0,0.01234]
[1757294589978,0.18042675,110900.0,110890.0,0.02034]
[1757294590388,0.18042675,110900.0,110890.0,0.01234]
[1757294590785,0.18042675,110900.0,110890.0,0.01934]
[1757294596757,8.41e-05,110900.0,110890.0,0.54135012]
[1757294597395,8.41e-05,110900.0,110890.0,0.63326611]
[1757294601292,0.18042675,110900.0,110890.0,0.4432549]
[1757294601706,0.18042675,110900.0,110890.0,0.01934]
[1757294601905,0.18042675,110900.0,110890.0,0.17098]
[1757294602110,0.18042675,110900.0,110890.0,0.01934]
[1757294605702,0.18042675,110900.0,110890.0,0.19969891]
[1757294605907,8.41e-05,110900.0,110890.0,0.38971012]
[1757294607598,0.18042675,110900.0,110890.0,0.38971012]
[1757294608692,8.41e-05,110900.0,110890.0,0.38971012]
[1757294608897,8.41e-05,110900.0,110890.0,0.19969891]
[1757294609228,8.41e-05,110900.0,110890.0,0.38971012]
[1757294611470,0.18042675,110900.0,110890.0,0.19969891]
[1757294611669,8.41e-05,110900.0,110890.0,0.82162611]
[1757294617566,8.41e-05,110900.0,110890.0,0.84870206]